[Event "Early-Titled-Tuesday-Blitz-October-17-2023"]
[Site "Chess.com"]
[Date "2023.10.17"]
[Round "6"]
[White "JimDiGrease"]
[Black "scarabee43"]
[Result "1-0"]
[WhiteElo "2902"]
[BlackElo "2798"]
[TimeControl "180+1"]
[EndTime "9:12:08 PDT"]
[Termination "JimDiGrease won by resignation"]

1. d4 {[%clk 0:03:00.9]} 1... Nf6 {[%clk 0:02:59.9]} 2. c4 {[%clk 0:03:01.2]}
2... e6 {[%clk 0:03:00]} 3. Bf4 {[%clk 0:03:01.4]} 3... d5 {[%clk 0:02:57.6]} 4.
Nc3 {[%clk 0:03:00.8]} 4... Be7 {[%clk 0:02:51.2]} 5. e3 {[%clk 0:03:00]} 5...
O-O {[%clk 0:02:50.4]} 6. Nf3 {[%clk 0:03:00.7]} 6... b6 {[%clk 0:02:48.3]} 7.
cxd5 {[%clk 0:02:55.6]} 7... Nxd5 {[%clk 0:02:46.1]} 8. Bg3 {[%clk 0:02:41.6]}
8... Nxc3 {[%clk 0:02:37.9]} 9. bxc3 {[%clk 0:02:41.6]} 9... c5 {[%clk
0:02:38.6]} 10. Bd3 {[%clk 0:02:42.1]} 10... Bb7 {[%clk 0:02:35.6]} 11. O-O
{[%clk 0:02:41.2]} 11... Nc6 {[%clk 0:02:33.3]} 12. Qe2 {[%clk 0:02:35.9]} 12...
Rc8 {[%clk 0:02:23.8]} 13. Rfd1 {[%clk 0:02:09.3]} 13... cxd4 {[%clk 0:02:19]}
14. Be4 {[%clk 0:02:08.9]} 14... d3 {[%clk 0:02:11.4]} 15. Bxd3 {[%clk
0:01:44.8]} 15... Qe8 {[%clk 0:02:08.2]} 16. Bb5 {[%clk 0:01:31.1]} 16... Rd8
{[%clk 0:01:41.3]} 17. Nd4 {[%clk 0:01:10.9]} 17... Rd5 {[%clk 0:01:33.4]} 18.
c4 {[%clk 0:00:51.6]} 18... Rg5 {[%clk 0:01:09.2]} 19. Rac1 {[%clk 0:00:44.6]}
19... Qa8 {[%clk 0:01:06.9]} 20. Nf3 {[%clk 0:00:41.3]} 20... Rc5 {[%clk
0:01:02.3]} 21. Rd7 {[%clk 0:00:39.9]} 21... Rd8 {[%clk 0:01:02]} 22. Bxc6
{[%clk 0:00:37.1]} 22... Rxc6 {[%clk 0:00:23.6]} 23. Rxe7 {[%clk 0:00:36.9]}
23... Kf8 {[%clk 0:00:16.5]} 24. Rc7 {[%clk 0:00:34.4]} 24... Rxc7 {[%clk
0:00:17.1]} 25. Bxc7 {[%clk 0:00:34.9]} 25... Bxf3 {[%clk 0:00:17.4]} 26. Qxf3
{[%clk 0:00:27.9]} 26... Qxf3 {[%clk 0:00:17]} 27. gxf3 {[%clk 0:00:28.8]} 27...
Rd2 {[%clk 0:00:17.4]} 28. a3 {[%clk 0:00:23.7]} 28... Ra2 {[%clk 0:00:15.3]}
29. Rc3 {[%clk 0:00:24]} 29... Ke7 {[%clk 0:00:14.9]} 30. Bb8 {[%clk 0:00:24.2]}
30... a6 {[%clk 0:00:14.5]} 31. Ba7 {[%clk 0:00:24.2]} 31... Rb2 {[%clk
0:00:14.7]} 32. c5 {[%clk 0:00:22.3]} 32... bxc5 {[%clk 0:00:14.2]} 33. Rxc5
{[%clk 0:00:23]} 33... Kd7 {[%clk 0:00:11.7]} 34. Ra5 {[%clk 0:00:23]} 34... Kc6
{[%clk 0:00:09.3]} 35. Rxa6+ {[%clk 0:00:22.5]} 35... Kb7 {[%clk 0:00:10]} 36.
Ra5 {[%clk 0:00:21.3]} 36... e5 {[%clk 0:00:09.6]} 37. Bc5 {[%clk 0:00:18.7]}
37... Kc6 {[%clk 0:00:10]} 38. Bf8 {[%clk 0:00:18.2]} 38... Rb8 {[%clk
0:00:09.4]} 39. Bb4 {[%clk 0:00:18.5]} 39... f6 {[%clk 0:00:09]} 40. Ra7 {[%clk
0:00:18.6]} 40... Rg8 {[%clk 0:00:08.3]} 41. h4 {[%clk 0:00:19]} 41... h5 {[%clk
0:00:08.2]} 42. Kg2 {[%clk 0:00:18.5]} 42... g5 {[%clk 0:00:08.7]} 43. Ra6+
{[%clk 0:00:19]} 43... Kb5 {[%clk 0:00:08.7]} 44. Rxf6 {[%clk 0:00:19.9]} 44...
gxh4+ {[%clk 0:00:09.2]} 45. Kh2 {[%clk 0:00:20.3]} 45... Rc8 {[%clk 0:00:07.5]}
46. Rf5 {[%clk 0:00:20.6]} 46... Rc2 {[%clk 0:00:07.8]} 47. Rxe5+ {[%clk
0:00:18.9]} 47... Ka4 {[%clk 0:00:08.3]} 48. f4 {[%clk 0:00:19.2]} 48... Rxf2+
{[%clk 0:00:08.6]} 49. Kh3 {[%clk 0:00:19.9]} 49... Rf1 {[%clk 0:00:05.8]} 50.
Kxh4 {[%clk 0:00:20.5]} 50... Rh1+ {[%clk 0:00:06.1]} 51. Kg3 {[%clk 0:00:21.2]}
51... h4+ {[%clk 0:00:06.7]} 52. Kg2 {[%clk 0:00:21.7]} 52... Rb1 {[%clk
0:00:06.4]} 53. Rh5 {[%clk 0:00:21.6]} 53... Rb2+ {[%clk 0:00:05.4]} 54. Kf3
{[%clk 0:00:22.1]} 54... Rh2 {[%clk 0:00:05.5]} 55. f5 {[%clk 0:00:22]} 55... h3
{[%clk 0:00:06.1]} 56. f6 {[%clk 0:00:22.1]} 56... Rh1 {[%clk 0:00:06.7]} 57. f7
{[%clk 0:00:22.3]} 57... Rf1+ {[%clk 0:00:06.9]} 58. Ke2 {[%clk 0:00:22.3]}
58... Rxf7 {[%clk 0:00:07.5]} 59. Rxh3 {[%clk 0:00:22.8]} 59... Rg7 {[%clk
0:00:07.5]} 60. Rh4 {[%clk 0:00:22.6]} 60... Kb5 {[%clk 0:00:07.5]} 61. Rd4
{[%clk 0:00:22.8]} 61... Rg2+ {[%clk 0:00:07.1]} 62. Kd3 {[%clk 0:00:23.1]}
62... Rg1 {[%clk 0:00:07.6]} 63. e4 {[%clk 0:00:23.2]} 63... Rg3+ {[%clk
0:00:07]} 64. Kd2 {[%clk 0:00:22.3]} 64... Rg4 {[%clk 0:00:07.3]} 65. Ke3 {[%clk
0:00:22.3]} 65... Rg5 {[%clk 0:00:04.6]} 66. Rd5+ {[%clk 0:00:21.7]} 66... Rxd5
{[%clk 0:00:01.9]} 67. exd5 {[%clk 0:00:22.6]} 67... Kb6 {[%clk 0:00:02.2]} 68.
d6 {[%clk 0:00:23.5]} 68... Kc6 {[%clk 0:00:02.5]} 69. Kd4 {[%clk 0:00:24.4]}
69... Kd7 {[%clk 0:00:03]} 70. Kd5 {[%clk 0:00:25.3]} 1-0

[Event "Early-Titled-Tuesday-Blitz-October-17-2023"]
[Site "Chess.com"]
[Date "2023.10.17"]
[Round "6"]
[White "Doomfist26"]
[Black "Cheer_Down"]
[Result "0-1"]
[WhiteElo "2618"]
[BlackElo "2526"]
[TimeControl "180+1"]
[EndTime "9:12:11 PDT"]
[Termination "Cheer_Down won by resignation"]

1. e4 {[%clk 0:02:57.4]} 1... e5 {[%clk 0:02:59.8]} 2. Nf3 {[%clk 0:02:57.3]}
2... Nc6 {[%clk 0:03:00]} 3. d4 {[%clk 0:02:57.6]} 3... exd4 {[%clk 0:02:59.2]}
4. c3 {[%clk 0:02:58.2]} 4... Nf6 {[%clk 0:02:55]} 5. e5 {[%clk 0:02:51.4]} 5...
Nd5 {[%clk 0:02:55.1]} 6. Bc4 {[%clk 0:02:49]} 6... Nb6 {[%clk 0:02:52]} 7. Bb3
{[%clk 0:02:44.2]} 7... d5 {[%clk 0:02:49.4]} 8. exd6 {[%clk 0:02:20]} 8... Qxd6
{[%clk 0:02:47.6]} 9. O-O {[%clk 0:02:16.1]} 9... Be6 {[%clk 0:02:47.3]} 10.
Bxe6 {[%clk 0:02:12.6]} 10... fxe6 {[%clk 0:02:47.6]} 11. cxd4 {[%clk
0:02:10.4]} 11... O-O-O {[%clk 0:02:47.7]} 12. Be3 {[%clk 0:02:00.7]} 12... e5
{[%clk 0:02:45.4]} 13. Nc3 {[%clk 0:01:55]} 13... exd4 {[%clk 0:02:44.4]} 14.
Nb5 {[%clk 0:01:55.4]} 14... Qb4 {[%clk 0:02:27.5]} 15. Nfxd4 {[%clk 0:01:53]}
15... Nxd4 {[%clk 0:02:27.5]} 16. Nxd4 {[%clk 0:01:51.3]} 16... Bc5 {[%clk
0:02:20.6]} 17. a3 {[%clk 0:01:41.1]} 17... Qa4 {[%clk 0:02:16.7]} 18. Qxa4
{[%clk 0:01:34.7]} 18... Nxa4 {[%clk 0:02:16.4]} 19. Ne6 {[%clk 0:01:35.5]}
19... Rd5 {[%clk 0:02:06.6]} 20. Rac1 {[%clk 0:01:21.6]} 20... Bd6 {[%clk
0:01:50.2]} 21. Rc2 {[%clk 0:01:05.3]} 21... Re8 {[%clk 0:01:37.3]} 22. Nd4
{[%clk 0:00:53]} 22... Bc5 {[%clk 0:01:24.5]} 23. Rd2 {[%clk 0:00:32.2]} 23...
Bxd4 {[%clk 0:01:19]} 24. Rxd4 {[%clk 0:00:32.2]} 24... Rxd4 {[%clk 0:01:15]}
25. Bxd4 {[%clk 0:00:33.1]} 25... g6 {[%clk 0:01:14.9]} 26. b3 {[%clk
0:00:27.4]} 26... Nb6 {[%clk 0:01:06.2]} 27. f4 {[%clk 0:00:27.9]} 27... Re4
{[%clk 0:01:04.7]} 28. Be5 {[%clk 0:00:24.6]} 28... Nd7 {[%clk 0:01:01.7]} 29.
Bg7 {[%clk 0:00:18.8]} 29... Re7 {[%clk 0:00:56.4]} 30. Bc3 {[%clk 0:00:16.5]}
30... Re3 {[%clk 0:00:56.3]} 31. Rf3 {[%clk 0:00:17.2]} 31... Rxf3 {[%clk
0:00:54.8]} 32. gxf3 {[%clk 0:00:17.9]} 32... Nc5 {[%clk 0:00:54.2]} 33. b4
{[%clk 0:00:17.7]} 33... Nd3 {[%clk 0:00:51.2]} 34. Bd2 {[%clk 0:00:15.1]} 34...
Kd7 {[%clk 0:00:49.8]} 35. Kf1 {[%clk 0:00:15.7]} 35... b5 {[%clk 0:00:48.5]}
36. Ke2 {[%clk 0:00:15.6]} 36... Nb2 {[%clk 0:00:48.8]} 37. Bc1 {[%clk
0:00:15.3]} 37... Nc4 {[%clk 0:00:48.2]} 38. Kd3 {[%clk 0:00:16]} 38... Ke6
{[%clk 0:00:47.4]} 39. Kd4 {[%clk 0:00:16.6]} 39... Kd6 {[%clk 0:00:46]} 40. h4
{[%clk 0:00:16.8]} 40... h5 {[%clk 0:00:42]} 41. a4 {[%clk 0:00:17.2]} 41... a6
{[%clk 0:00:36.6]} 42. a5 {[%clk 0:00:12.2]} 42... c6 {[%clk 0:00:34.4]} 43. Ke4
{[%clk 0:00:10.1]} 43... Ke6 {[%clk 0:00:31.9]} 44. Kd4 {[%clk 0:00:10.5]} 44...
Kd6 {[%clk 0:00:31]} 45. f5 {[%clk 0:00:09.1]} 45... gxf5 {[%clk 0:00:30.4]} 46.
Bf4+ {[%clk 0:00:09.8]} 46... Kd7 {[%clk 0:00:22.6]} 47. Kc5 {[%clk 0:00:10.1]}
47... Nb2 {[%clk 0:00:17.2]} 48. Kb6 {[%clk 0:00:10.2]} 48... Nd3 {[%clk
0:00:17.8]} 49. Bd2 {[%clk 0:00:10.9]} 49... Ne5 {[%clk 0:00:14.5]} 50. Kxa6
{[%clk 0:00:08.4]} 50... Nxf3 {[%clk 0:00:14.5]} 51. Bf4 {[%clk 0:00:06.8]}
51... Nd4 {[%clk 0:00:06.8]} 52. Kb7 {[%clk 0:00:06.8]} 52... c5 {[%clk
0:00:05.8]} 53. a6 {[%clk 0:00:06.3]} 53... Nc6 {[%clk 0:00:05.4]} 54. bxc5
{[%clk 0:00:05.9]} 54... b4 {[%clk 0:00:05.5]} 55. a7 {[%clk 0:00:06.4]} 55...
Nxa7 {[%clk 0:00:04.7]} 56. Kxa7 {[%clk 0:00:07.1]} 56... Kc6 {[%clk 0:00:04.7]}
57. Be3 {[%clk 0:00:03.8]} 57... b3 {[%clk 0:00:04.2]} 58. Bd4 {[%clk
0:00:04.6]} 58... f4 {[%clk 0:00:04.4]} 59. Ka6 {[%clk 0:00:03.8]} 59... f3
{[%clk 0:00:04.7]} 60. Ka5 {[%clk 0:00:04.5]} 60... b2 {[%clk 0:00:04.7]} 61.
Bxb2 {[%clk 0:00:04.9]} 61... f2 {[%clk 0:00:05.1]} 62. Kb4 {[%clk 0:00:05.8]}
62... f1=Q {[%clk 0:00:05.7]} 0-1

[Event "Early-Titled-Tuesday-Blitz-October-17-2023"]
[Site "Chess.com"]
[Date "2023.10.17"]
[Round "6"]
[White "lolo9292"]
[Black "Mesa_1"]
[Result "1/2-1/2"]
[WhiteElo "2204"]
[BlackElo "2587"]
[TimeControl "180+1"]
[EndTime "9:12:13 PDT"]
[Termination "Game drawn by repetition"]

1. Nf3 {[%clk 0:03:00.9]} 1... Nf6 {[%clk 0:02:59.7]} 2. c4 {[%clk 0:03:00.9]}
2... g6 {[%clk 0:03:00.5]} 3. Nc3 {[%clk 0:02:59.4]} 3... Bg7 {[%clk 0:03:01.3]}
4. d4 {[%clk 0:02:59.7]} 4... O-O {[%clk 0:03:01]} 5. g3 {[%clk 0:02:59.8]} 5...
d6 {[%clk 0:03:01.2]} 6. Bg2 {[%clk 0:03:00.3]} 6... Nc6 {[%clk 0:03:01.5]} 7.
O-O {[%clk 0:02:59.7]} 7... e5 {[%clk 0:03:01.9]} 8. e4 {[%clk 0:02:59.9]} 8...
exd4 {[%clk 0:03:00.5]} 9. Nxd4 {[%clk 0:03:00.8]} 9... Nxe4 {[%clk 0:03:01]}
10. Nxc6 {[%clk 0:02:54.7]} 10... Nxc3 {[%clk 0:03:00.9]} 11. bxc3 {[%clk
0:02:26.8]} 11... bxc6 {[%clk 0:03:00]} 12. Bxc6 {[%clk 0:02:22.4]} 12... Rb8
{[%clk 0:02:56.8]} 13. Qd3 {[%clk 0:02:19.6]} 13... Bf5 {[%clk 0:02:55]} 14. Qf3
{[%clk 0:02:12.9]} 14... Bd7 {[%clk 0:02:51.9]} 15. Bxd7 {[%clk 0:02:05.4]}
15... Qxd7 {[%clk 0:02:52.8]} 16. Bg5 {[%clk 0:02:04.6]} 16... Qe6 {[%clk
0:02:39.5]} 17. Qd5 {[%clk 0:01:52.1]} 17... Qxd5 {[%clk 0:02:22.5]} 18. cxd5
{[%clk 0:01:53]} 18... Bxc3 {[%clk 0:02:22.9]} 19. Rac1 {[%clk 0:01:49.1]} 19...
Ba5 {[%clk 0:02:23]} 20. Bf6 {[%clk 0:01:40.7]} 20... Rb5 {[%clk 0:02:20.2]} 21.
Rfd1 {[%clk 0:01:37.1]} 21... Re8 {[%clk 0:02:16.9]} 22. Rc4 {[%clk 0:01:36.2]}
22... h6 {[%clk 0:02:12]} 23. Kg2 {[%clk 0:01:33.2]} 23... g5 {[%clk 0:02:05.2]}
24. h4 {[%clk 0:01:30.7]} 24... Kh7 {[%clk 0:01:56.7]} 25. hxg5 {[%clk
0:01:30.3]} 25... Kg6 {[%clk 0:01:57.1]} 26. f4 {[%clk 0:01:04.4]} 26... hxg5
{[%clk 0:01:48.4]} 27. fxg5 {[%clk 0:01:04.4]} 27... Re2+ {[%clk 0:01:40]} 28.
Kf3 {[%clk 0:01:04]} 28... Rxa2 {[%clk 0:01:31.6]} 29. Rh4 {[%clk 0:00:58.5]}
29... Rb3+ {[%clk 0:01:16.4]} 30. Kg4 {[%clk 0:00:57]} 30... Ra4+ {[%clk
0:01:12.6]} 31. Bd4 {[%clk 0:00:56.6]} 31... f5+ {[%clk 0:00:44.9]} 32. gxf6
{[%clk 0:00:56.3]} 32... Be1 {[%clk 0:00:29.1]} 33. Kh3 {[%clk 0:00:54.5]} 33...
Rxg3+ {[%clk 0:00:24.7]} 34. Kh2 {[%clk 0:00:52.6]} 34... Ra2+ {[%clk
0:00:15.8]} 35. Kh1 {[%clk 0:00:49.3]} 35... Bf2 {[%clk 0:00:12.9]} 36. Bxf2
{[%clk 0:00:42.7]} 36... Rxf2 {[%clk 0:00:13.8]} 37. Rc1 {[%clk 0:00:35.7]}
37... Rxf6 {[%clk 0:00:11.5]} 38. Rxc7 {[%clk 0:00:35]} 38... Kg5 {[%clk
0:00:11.5]} 39. Rch7 {[%clk 0:00:25.5]} 39... Rg6 {[%clk 0:00:09.4]} 40. R4h5+
{[%clk 0:00:21.3]} 40... Kf4 {[%clk 0:00:08.4]} 41. Rxa7 {[%clk 0:00:19.6]}
41... Rg1+ {[%clk 0:00:05]} 42. Kh2 {[%clk 0:00:20.2]} 42... R6g2+ {[%clk
0:00:05]} 43. Kh3 {[%clk 0:00:20.8]} 43... Rh1+ {[%clk 0:00:05.3]} 44. Kxg2
{[%clk 0:00:20.6]} 44... Rxh5 {[%clk 0:00:06.2]} 45. Ra5 {[%clk 0:00:15.6]}
45... Ke4 {[%clk 0:00:06.2]} 46. Kf2 {[%clk 0:00:15.4]} 46... Rxd5 {[%clk
0:00:05.7]} 47. Ra4+ {[%clk 0:00:15.5]} 47... Rd4 {[%clk 0:00:06]} 48. Ra6
{[%clk 0:00:14.7]} 48... d5 {[%clk 0:00:04.2]} 49. Ke1 {[%clk 0:00:14.6]} 49...
Kd3 {[%clk 0:00:03.5]} 50. Rh6 {[%clk 0:00:13.8]} 50... Kc4 {[%clk 0:00:03.6]}
51. Ke2 {[%clk 0:00:12.1]} 51... Re4+ {[%clk 0:00:04]} 52. Kd2 {[%clk
0:00:11.7]} 52... d4 {[%clk 0:00:04.4]} 53. Rh8 {[%clk 0:00:11.7]} 53... Rg4
{[%clk 0:00:04.2]} 54. Rc8+ {[%clk 0:00:11]} 54... Kd5 {[%clk 0:00:04.6]} 55.
Rd8+ {[%clk 0:00:11.2]} 55... Ke5 {[%clk 0:00:05.2]} 56. Rh8 {[%clk 0:00:11.2]}
56... Rg2+ {[%clk 0:00:05]} 57. Kd3 {[%clk 0:00:11.2]} 57... Rg3+ {[%clk
0:00:05.9]} 58. Kd2 {[%clk 0:00:11.7]} 58... Ke4 {[%clk 0:00:06.8]} 59. Rh4+
{[%clk 0:00:11.4]} 59... Kd5 {[%clk 0:00:07.2]} 60. Rh8 {[%clk 0:00:12]} 60...
Rg2+ {[%clk 0:00:06.8]} 61. Kd3 {[%clk 0:00:12.2]} 61... Rg3+ {[%clk 0:00:07.7]}
62. Kd2 {[%clk 0:00:12.4]} 62... Rg4 {[%clk 0:00:07.9]} 63. Kd3 {[%clk
0:00:12.3]} 63... Rg3+ {[%clk 0:00:06.8]} 64. Kd2 {[%clk 0:00:12.3]} 1/2-1/2

[Event "Early-Titled-Tuesday-Blitz-October-17-2023"]
[Site "Chess.com"]
[Date "2023.10.17"]
[Round "6"]
[White "Sofia_Blokhin"]
[Black "Alenzer"]
[Result "1-0"]
[WhiteElo "2281"]
[BlackElo "2096"]
[TimeControl "180+1"]
[EndTime "9:12:17 PDT"]
[Termination "Sofia_Blokhin won by resignation"]

1. d4 {[%clk 0:03:00.9]} 1... d5 {[%clk 0:02:56.6]} 2. c4 {[%clk 0:03:00.4]}
2... dxc4 {[%clk 0:02:55.6]} 3. Nf3 {[%clk 0:02:59.2]} 3... a6 {[%clk
0:02:54.7]} 4. Nc3 {[%clk 0:02:56.6]} 4... Nf6 {[%clk 0:02:52.5]} 5. e3 {[%clk
0:02:54.3]} 5... e6 {[%clk 0:02:52.1]} 6. Bxc4 {[%clk 0:02:53.4]} 6... b5 {[%clk
0:02:52.8]} 7. Bd3 {[%clk 0:02:52.6]} 7... c5 {[%clk 0:02:51.8]} 8. O-O {[%clk
0:02:46.9]} 8... Nbd7 {[%clk 0:02:40.7]} 9. a4 {[%clk 0:02:44.8]} 9... b4 {[%clk
0:02:37]} 10. Ne2 {[%clk 0:02:43.7]} 10... Bb7 {[%clk 0:02:35]} 11. Ng3 {[%clk
0:02:39.8]} 11... Be7 {[%clk 0:02:32]} 12. Bd2 {[%clk 0:02:34.9]} 12... O-O
{[%clk 0:02:31.2]} 13. Rc1 {[%clk 0:02:33.8]} 13... Rc8 {[%clk 0:02:12.8]} 14.
Qe2 {[%clk 0:02:26.4]} 14... Nb6 {[%clk 0:01:47.7]} 15. b3 {[%clk 0:02:23.4]}
15... a5 {[%clk 0:01:41.1]} 16. Rfd1 {[%clk 0:02:18.1]} 16... Ne4 {[%clk
0:01:33.4]} 17. Nxe4 {[%clk 0:02:14.3]} 17... c4 {[%clk 0:01:17.4]} 18. bxc4
{[%clk 0:02:10.3]} 18... Nxa4 {[%clk 0:01:17.4]} 19. Bb1 {[%clk 0:02:01.6]}
19... Nb2 {[%clk 0:01:00]} 20. Re1 {[%clk 0:01:54.3]} 20... a4 {[%clk
0:00:59.9]} 21. Bxb4 {[%clk 0:01:44.3]} 21... Bxb4 {[%clk 0:00:59.9]} 22. Qxb2
{[%clk 0:01:44.1]} 22... Bxe1 {[%clk 0:01:00.2]} 23. Nxe1 {[%clk 0:01:43.3]}
23... Rb8 {[%clk 0:00:42.8]} 24. Qc2 {[%clk 0:01:42.8]} 24... Bxe4 {[%clk
0:00:38.8]} 25. Qxe4 {[%clk 0:01:41.7]} 25... g6 {[%clk 0:00:39.5]} 26. Bc2
{[%clk 0:01:37.7]} 26... a3 {[%clk 0:00:39.4]} 27. Ra1 {[%clk 0:01:34.8]} 27...
Qa5 {[%clk 0:00:35.8]} 28. Qd3 {[%clk 0:01:22.3]} 28... a2 {[%clk 0:00:31]} 29.
Bb3 {[%clk 0:01:11.2]} 29... Rb4 {[%clk 0:00:17.1]} 30. Nc2 {[%clk 0:01:05.3]}
30... Rb7 {[%clk 0:00:14.3]} 31. Rxa2 {[%clk 0:00:58.1]} 31... Qc7 {[%clk
0:00:14.7]} 32. g3 {[%clk 0:00:54.9]} 32... Rfb8 {[%clk 0:00:15.1]} 33. Ra3
{[%clk 0:00:42.2]} 33... Qc6 {[%clk 0:00:14.8]} 34. e4 {[%clk 0:00:37.4]} 34...
Kg7 {[%clk 0:00:12.8]} 35. d5 {[%clk 0:00:36.9]} 35... exd5 {[%clk 0:00:11.6]}
36. exd5 {[%clk 0:00:36.8]} 36... Qc5 {[%clk 0:00:12]} 37. Qd4+ {[%clk
0:00:35.2]} 37... Qxd4 {[%clk 0:00:10.6]} 38. Nxd4 {[%clk 0:00:36.1]} 38... Kf6
{[%clk 0:00:09.5]} 39. f4 {[%clk 0:00:34.5]} 39... h5 {[%clk 0:00:08]} 40. c5
{[%clk 0:00:34]} 40... Rb4 {[%clk 0:00:08]} 41. Nc6 {[%clk 0:00:33.4]} 41...
Rxb3 {[%clk 0:00:07.9]} 42. Ra6 {[%clk 0:00:24.4]} 42... Rb1+ {[%clk 0:00:05.3]}
43. Kf2 {[%clk 0:00:23.6]} 43... R8b2+ {[%clk 0:00:05.9]} 44. Ke3 {[%clk
0:00:23.2]} 44... Kg7 {[%clk 0:00:06.8]} 45. d6 {[%clk 0:00:21.9]} 45... Rb3+
{[%clk 0:00:05.3]} 46. Kd4 {[%clk 0:00:11.1]} 46... Rd1+ {[%clk 0:00:05.3]} 47.
Kc4 {[%clk 0:00:11.2]} 47... Rb2 {[%clk 0:00:05.5]} 48. Ne5 {[%clk 0:00:09.2]}
48... Rc2+ {[%clk 0:00:05.6]} 49. Kb5 {[%clk 0:00:09.1]} 49... Rb1+ {[%clk
0:00:05.7]} 50. Kc6 {[%clk 0:00:08.5]} 50... Rbc1 {[%clk 0:00:06.1]} 51. Ra5
{[%clk 0:00:08.2]} 51... Rd2 {[%clk 0:00:05]} 52. d7 {[%clk 0:00:08.4]} 52...
Rcd1 {[%clk 0:00:04.3]} 53. Kc7 {[%clk 0:00:07.1]} 53... h4 {[%clk 0:00:04.8]}
54. c6 {[%clk 0:00:06.3]} 54... hxg3 {[%clk 0:00:04.7]} 55. hxg3 {[%clk
0:00:07.2]} 55... Rd3 {[%clk 0:00:03]} 56. Nxd3 {[%clk 0:00:06.5]} 56... Rxd3
{[%clk 0:00:03.4]} 57. d8=Q {[%clk 0:00:06.7]} 57... Rxd8 {[%clk 0:00:02.7]} 58.
Kxd8 {[%clk 0:00:07.6]} 58... Kf6 {[%clk 0:00:02.8]} 59. c7 {[%clk 0:00:08.5]}
1-0

[Event "Early-Titled-Tuesday-Blitz-October-17-2023"]
[Site "Chess.com"]
[Date "2023.10.17"]
[Round "6"]
[White "atbenina64"]
[Black "JuniorJumper"]
[Result "0-1"]
[WhiteElo "2698"]
[BlackElo "2576"]
[TimeControl "180+1"]
[EndTime "9:12:18 PDT"]
[Termination "JuniorJumper won on time"]

1. Nf3 {[%clk 0:03:00.9]} 1... d5 {[%clk 0:02:56.4]} 2. g3 {[%clk 0:03:01.1]}
2... Bg4 {[%clk 0:02:57]} 3. Bg2 {[%clk 0:03:01.4]} 3... e6 {[%clk 0:02:57.5]}
4. O-O {[%clk 0:02:58.3]} 4... Nd7 {[%clk 0:02:58.1]} 5. h3 {[%clk 0:02:58.3]}
5... Bxf3 {[%clk 0:02:58]} 6. Bxf3 {[%clk 0:02:58.5]} 6... Ngf6 {[%clk
0:02:58.5]} 7. d3 {[%clk 0:02:58.1]} 7... Bd6 {[%clk 0:02:57.5]} 8. Nc3 {[%clk
0:02:58.4]} 8... O-O {[%clk 0:02:55.8]} 9. e4 {[%clk 0:02:59.1]} 9... c6 {[%clk
0:02:49.5]} 10. Bg2 {[%clk 0:02:59.2]} 10... Qb6 {[%clk 0:02:42.7]} 11. Kh2
{[%clk 0:02:50.1]} 11... dxe4 {[%clk 0:02:00.1]} 12. Nxe4 {[%clk 0:02:42.8]}
12... Nxe4 {[%clk 0:01:55.9]} 13. Bxe4 {[%clk 0:02:42.5]} 13... Nf6 {[%clk
0:01:55.8]} 14. Bg2 {[%clk 0:02:41.6]} 14... Rad8 {[%clk 0:01:55.6]} 15. Qe2
{[%clk 0:02:39]} 15... Rfe8 {[%clk 0:01:53.5]} 16. a4 {[%clk 0:02:35.6]} 16...
Nd5 {[%clk 0:01:50.4]} 17. a5 {[%clk 0:02:33.6]} 17... Qc7 {[%clk 0:01:49.9]}
18. c3 {[%clk 0:02:31.8]} 18... h6 {[%clk 0:01:47.7]} 19. Ra4 {[%clk 0:02:29.8]}
19... b5 {[%clk 0:01:44.2]} 20. axb6 {[%clk 0:02:27.6]} 20... axb6 {[%clk
0:01:44.4]} 21. Bd2 {[%clk 0:02:26.6]} 21... Ra8 {[%clk 0:01:32.2]} 22. Rg4
{[%clk 0:02:18.2]} 22... Nf6 {[%clk 0:01:28.7]} 23. Rc4 {[%clk 0:02:18.1]} 23...
Nd5 {[%clk 0:01:21.7]} 24. Re1 {[%clk 0:02:05.2]} 24... Qd7 {[%clk 0:01:15.4]}
25. Rg4 {[%clk 0:01:58.1]} 25... Nf6 {[%clk 0:01:14.8]} 26. Rd4 {[%clk
0:01:58.1]} 26... Nd5 {[%clk 0:01:03.9]} 27. c4 {[%clk 0:01:55.9]} 27... Nf6
{[%clk 0:00:54.9]} 28. Bc3 {[%clk 0:01:40.7]} 28... Qc7 {[%clk 0:00:44.2]} 29.
b4 {[%clk 0:01:33.1]} 29... Ra3 {[%clk 0:00:40]} 30. Qb2 {[%clk 0:01:16]} 30...
Rea8 {[%clk 0:00:39.8]} 31. Re2 {[%clk 0:01:14]} 31... Ra2 {[%clk 0:00:36.4]}
32. Qxa2 {[%clk 0:01:10.7]} 32... Rxa2 {[%clk 0:00:37.3]} 33. Rxa2 {[%clk
0:01:11.6]} 33... Be5 {[%clk 0:00:38.1]} 34. Ra8+ {[%clk 0:01:02.4]} 34... Kh7
{[%clk 0:00:37.8]} 35. Ra6 {[%clk 0:00:33.5]} 35... c5 {[%clk 0:00:35]} 36. bxc5
{[%clk 0:00:30.2]} 36... bxc5 {[%clk 0:00:35.4]} 37. Rc6 {[%clk 0:00:26.6]}
37... cxd4 {[%clk 0:00:30.5]} 38. Rxc7 {[%clk 0:00:26.1]} 38... dxc3 {[%clk
0:00:31.1]} 39. Rxf7 {[%clk 0:00:11.3]} 39... c2 {[%clk 0:00:28.8]} 40. d4
{[%clk 0:00:12.1]} 40... c1=Q {[%clk 0:00:28.8]} 41. dxe5 {[%clk 0:00:12.6]}
41... Kg8 {[%clk 0:00:24.7]} 42. Re7 {[%clk 0:00:10.6]} 42... Nh7 {[%clk
0:00:09.3]} 43. Rxe6 {[%clk 0:00:09]} 43... Nf8 {[%clk 0:00:10]} 44. Rc6 {[%clk
0:00:08.8]} 44... Qe1 {[%clk 0:00:10.3]} 45. f4 {[%clk 0:00:08.8]} 45... Qe2
{[%clk 0:00:08.9]} 46. c5 {[%clk 0:00:07]} 46... Kf7 {[%clk 0:00:09.4]} 47. Rc7+
{[%clk 0:00:06.8]} 47... Kg6 {[%clk 0:00:08.1]} 48. c6 {[%clk 0:00:07.7]} 48...
Ne6 {[%clk 0:00:08.7]} 49. Rd7 {[%clk 0:00:07.6]} 49... Qc2 {[%clk 0:00:05.8]}
50. Rd6 {[%clk 0:00:07]} 50... Kf7 {[%clk 0:00:02.5]} 51. h4 {[%clk 0:00:05.1]}
51... g5 {[%clk 0:00:02.4]} 52. hxg5 {[%clk 0:00:05.4]} 52... hxg5 {[%clk
0:00:03.3]} 53. f5 {[%clk 0:00:03.7]} 53... Ng7 {[%clk 0:00:04]} 54. Rd7+ {[%clk
0:00:03.1]} 54... Ke8 {[%clk 0:00:04.6]} 55. Rxg7 {[%clk 0:00:02.5]} 55... Qxf5
{[%clk 0:00:05.2]} 56. c7 {[%clk 0:00:02.7]} 56... Kf8 {[%clk 0:00:05.2]} 57.
Rd7 {[%clk 0:00:01.9]} 57... Qxd7 {[%clk 0:00:05.6]} 58. Bh3 {[%clk 0:00:01.9]}
58... Qxc7 {[%clk 0:00:05.8]} 0-1